Cogmind - Beta 14 @@@ ROGUE MODE // 2024.11.01 @ 19:37:09 Player: NextToZero Result: Destroyed by Y-54 Guardian with Flak Gun Performance ------------- Evolutions (3) 1500 Regions Visited (7) 1400 Robots Destroyed (83) 415 Value Destroyed (2374) 2374 Prototype IDs (28) 560 Alien Tech Used (0) 0 Bonus (802) 802 TOTAL SCORE: 7051 Bonus ------- High Alert Combat Kills 302 Entered Garrisons 200 Aligned with FarCom 300 Cogmind --------- Core Integrity 0/700 Matter 36/300 Energy 100/100 System Corruption 0% Temperature Critical (753) Movement Core (50) Location -7/Garrison Parts ------- > --- POWER (1) -------- (None) > --- PROPULSION (4) --- (None) > --- UTILITY (5) ------ (None) > --- WEAPON (3) ------- (None) > --- INVENTORY (5) ---- Improved Heavy Armor Plating Decoy Drone Bay Improved EM Pulse Cannon Peak State ------------ > --- POWER ------------ Particle Reactor > --- PROPULSION ------- Armored Treads Armored Treads Armored Treads Armored Treads > --- UTILITY ---------- Lightpack 2.0 Improved Heavy Armor Plating > --- WEAPON ----------- Wave Gun Improved EM Pulse Cannon Railgun > --- INVENTORY -------- Deuterium Engine Armored Treads Armored Treads Armored Huge Wheel Armored Huge Wheel High-capacity Storage Unit High-capacity Battery Large Matter Pod Advanced Weight Redist. System Structural Scanner Particle Charger Improved Utility Shielding Heavy Armor Plating Hardened Medium Armor Plating Improved Light Armor Plating Improved Light Armor Plating Improved Light Armor Plating Improved Heavy Armor Plating Layered Medium Armor Plating Layered Medium Armor Plating System Shield System Restoration Module Improved Trap Extractor Improved Trap Extractor Field Recycling Unit Decoy Drone Bay Field Laser High-powered Shotgun High-powered Shotgun Flak Cannon Flak Cannon Flak Cannon Missile Launcher [Rating: 89] Favorites ----------- Power Light Nuclear Core Engine Deuterium Engine Power Core Light Nuclear Core Reactor Particle Reactor Propulsion Aluminum Leg Treads Armored Treads Leg Aluminum Leg Wheel Armored Huge Wheel Utility Signal Interpreter Device Improved Terrain Scanner Storage Large Storage Unit Processor Signal Interpreter Protection Improved Heavy Armor Plating Weapon Assault Rifle Energy Gun Particle Gun Energy Cannon Improved EM Pulse Cannon Ballistic Gun Assault Rifle Ballistic Cannon Flak Cannon Launcher Rocket Launcher Build | -11 -10 -10 -10 -9 -8 -7 -7 ------- Run | Yrd Mat Min Exi Min Mat Fac Gar Slots Evolved 6 | . . . . . 4 2 . Power . | . . . . . . . . Propulsion 2 | . . . . . 1 1 . Utility 3 | . . . . . 3 . . Weapon 1 | . . . . . . 1 . Parts Attached 101 | 10 17 . . 2 46 . 26 Power 11 | 1 3 . . . 5 . 2 Engine 9 | 1 2 . . . 5 . 1 Core 1 | . 1 . . . . . . Reactor 1 | . . . . . . . 1 Propulsion 23 | 4 4 . . . 10 . 5 Treads 9 | . . . . . 6 . 3 Leg 10 | 2 4 . . . 4 . . Wheel 4 | 2 . . . . . . 2 Hover . | . . . . . . . . Flight . | . . . . . . . . Utility 27 | 3 8 . . . 11 . 5 Device 5 | 1 1 . . . 2 . 1 Storage 5 | 2 2 . . . 1 . . Processor 5 | . 4 . . . 1 . . Hackware . | . . . . . . . . Protection 12 | . 1 . . . 7 . 4 Artifact . | . . . . . . . . Weapon 40 | 2 2 . . 2 20 . 14 Energy Gun 7 | 1 1 . . . 2 . 3 Energy Cannon 4 | . . . . . 3 . 1 Ballistic Gun 8 | 1 . . . . 3 . 4 Ballistic Cannon 9 | . 1 . . . 5 . 3 Launcher 12 | . . . . 2 7 . 3 Special Weapon . | . . . . . . . . Impact Weapon . | . . . . . . . . Slashing Weapon . | . . . . . . . . Piercing Weapon . | . . . . . . . . Special Melee Weapon . | . . . . . . . . Unidentified Prototypes 3 | . . . . . 3 . . Parts Lost 35 | . 2 . . . 4 . 29 Power 3 | . 1 . . . . . 2 Propulsion 7 | . . . . . . . 7 Utility 15 | . . . . . 3 . 12 Weapon 10 | . 1 . . . 1 . 8 Highest Loss Streak 18 | . 2 . . . 1 . 18 To Critical Strikes . | . . . . . . . . Average Slot Usage (%) 85 | . 99 87 85 96 79 69 71 Engine 3 | . 7 . . . 5 7 2 Core 7 | . 6 14 14 14 3 . . Treads 7 | . . . . . 9 23 27 Leg 20 | . 28 28 28 28 17 . . Storage 10 | . 7 14 14 14 9 7 7 Processor 10 | . 17 14 14 14 6 . . Protection 3 | . . . . . 8 15 7 Energy Gun 3 | . 10 2 . . . . 4 Energy Cannon 2 | . . . . . 6 15 6 Ballistic Gun 7 | . 14 14 14 5 . . 2 Ballistic Cannon 1 | . 3 . . . 3 . . Launcher 5 | . . . . 19 6 . 5 Peak Build Rating 89 | 9 12 11 13 15 69 68 89 Average Rating 36 | 5 10 9 12 14 63 68 80 On Entrance 24 | . 9 11 11 13 15 68 68 Naked Turns 1 | . . . . . . . 1 Heaviest Build 56 | 17 30 30 27 32 37 37 56 Greatest Support 80 | 26 20 20 20 20 60 60 80 Greatest Overweight (x) 1 | 1 1 1 1 1 1 . 1 Average Overweight (x) . | . . 1 1 1 . . . Largest Inventory Capacity 40 | 8 25 15 15 15 40 40 40 Average Capacity 24 | 7 9 15 15 15 39 40 39 Most Carried 40 | 5 15 15 15 15 40 40 40 Average Carried 22 | 2 8 14 14 14 34 40 37 Final Capacity 40 | 8 15 15 15 15 40 40 5 Final Carried 40 | 5 14 15 15 15 40 40 5 Class Distribution -------------------- 48% | Scavenger-Mutant 28% | Hauler-Mutant 12% | Hauler-Skirmisher 9% | Mutant Dominant Class ---------------- Scavenger-Mutant | -10/Materials Scavenger-Mutant | -10/Mines Scavenger-Mutant | -10/Exiles Scavenger-Mutant | -9/Mines Hauler-Mutant | -8/Materials Hauler-Mutant | -7/Factory Hauler-Skirmisher | -7/Garrison Resources | -11 -10 -10 -10 -9 -8 -7 -7 ----------- Run | Yrd Mat Min Exi Min Mat Fac Gar Matter Collected 2186 | 295 416 . . 89 983 . 403 Remotely . | . . . . . . . . Salvage Created 2157 | 80 490 . . 117 829 . 641 Parts 168 | 6 40 . . 8 62 . 52 Haulers Intercepted 4 | . 2 . . . 2 . . Recyclers Shooed . | . . . . . . . . Parts Field Recycled 6 | . . . . . 6 . . Retrieved Matter 2 | . . . . . 2 . . Parts Self-Destructed . | . . . . . . . . Prevented . | . . . . . . . . Kills | -11 -10 -10 -10 -9 -8 -7 -7 ------- Run | Yrd Mat Min Exi Min Mat Fac Gar Combat Hostiles Destroyed 63 | . 10 . . 6 22 . 25 Guns 13 | . 8 . . . . . 5 Cannons 18 | . 2 . . . 9 . 7 AOE 31 | . . . . 6 12 . 13 Classes Destroyed 14 | 2 6 . . . 4 . 2 Worker 3 | . 2 . . . 1 . . Builder 1 | . 1 . . . . . . Tunneler 3 | 1 1 . . . 1 . . Hauler 4 | . 2 . . . 2 . . Recycler 1 | 1 . . . . . . . Operator 1 | . . . . . 1 . . Watcher 7 | . 3 . . . 3 . 1 Swarmer 27 | . 3 . . 3 5 . 16 Cutter 3 | . . . . . . . 3 Grunt 21 | . 7 . . 3 9 . 2 Brawler 1 | . . . . . 1 . . Duelist 1 | . . . . . . . 1 Sentry 7 | . . . . . 5 . 2 Hunter 3 | . . . . . 2 . 1 Best Kill Streak 10 | 1 4 . . 3 8 . 10 Combat Bots Only 10 | . 3 . . 3 7 . 10 Max Kills in Single Turn 4 | 1 1 . . 2 3 . 4 Gunslinging . | . . . . . . . . Exploded 4 | . . . . 2 3 . 4 Melee . | . . . . . . . . Uniques/NPCs Destroyed . | . . . . . . . . Combat | -11 -10 -10 -10 -9 -8 -7 -7 -------- Run | Yrd Mat Min Exi Min Mat Fac Gar Hostile Shots Fired 590 | . 43 . . 2 128 . 417 Missed 141 | . 8 . . . 45 . 88 Damage Taken 6052 | . 414 . . 39 1218 . 4381 Core 900 | . 43 . . 19 138 . 700 Absorbed by Shields . | . . . . . . . . Regen/Repaired (Parts) 39 | . . . . . 39 . . Core Remaining (%) 83 | 100 . . . 75 74 . . Volleys Fired 170 | 4 51 . . 4 62 . 49 Largest 3 | 2 2 . . 2 2 . 3 Hottest 213 | 60 85 . . 63 138 . 213 Shots Fired 315 | 8 95 . . 7 101 . 104 Gun 152 | 8 73 . . . 20 . 51 Cannon 113 | . 22 . . . 59 . 32 Launcher 50 | . . . . 7 22 . 21 Special . | . . . . . . . . Kinetic 144 | 4 73 . . . 37 . 30 Thermal 67 | . 20 . . . 14 . 33 Explosive 50 | . . . . 7 22 . 21 Electromagnetic 54 | 4 2 . . . 28 . 20 Robot Hit Streak 10 | 5 6 . . 5 8 . 10 Robot Miss Streak 12 | 1 6 . . . 12 . 4 Penetration Max . | . . . . . . . . Secondary Targets . | . . . . . . . . Shots Hit Robots 174 | 6 46 . . 3 63 . 56 Core Hits 162 | 3 24 . . 10 65 . 60 Critical Kills . | . . . . . . . . Critical Parts Destroyed 2 | . 1 . . . . . 1 Critical Strikes 8 | . 5 . . . 1 . 2 Burn 3 | . 1 . . . 1 . 1 Destroy 2 | . 1 . . . . . 1 Blast 3 | . 3 . . . . . . Melee Attacks . | . . . . . . . . Impact . | . . . . . . . . Slashing . | . . . . . . . . Piercing . | . . . . . . . . Sneak Attacks . | . . . . . . . . Combat Hostiles . | . . . . . . . . Follow-up Attacks . | . . . . . . . . Damage Inflicted 6154 | 79 669 . . 407 2461 . 2538 Guns 1545 | 79 421 . . . 214 . 831 Cannons 1754 | . 248 . . . 856 . 650 Explosions 2841 | . . . . 407 1391 . 1043 Melee . | . . . . . . . . Ramming 14 | . . . . . . . 14 Kinetic 1631 | 38 546 . . . 366 . 681 Thermal 820 | . 123 . . 56 181 . 460 Explosive 2785 | . . . . 351 1391 . 1043 Electromagnetic 904 | 41 . . . . 523 . 340 Impact . | . . . . . . . . Slashing . | . . . . . . . . Piercing . | . . . . . . . . Highest Corruption 3 | . . . . . 3 3 3 Average Corruption 2 | . . . . . 3 2 2 Corruption Purged 3 | . . . . . . . 3 Corruption Blocked . | . . . . . . . . Effects 19 | . . . . . 9 . 10 Message Errors 2 | . . . . . 1 . 1 Matter Fused 3 | . . . . . 1 . 2 Heat Flow Errors 3 | . . . . . 3 . . Energy Discharges 3 | . . . . . 1 . 2 Data Loss (minor) 3 | . . . . . 3 . . Misfires 3 | . . . . . . . 3 Weapon Failures 2 | . . . . . . . 2 Overload Shots . | . . . . . . . . Overflow Damage 26 | . . . . 2 16 . 8 Projectiles 13 | . . . . . 13 . . Explosions 13 | . . . . 2 3 . 8 Melee . | . . . . . . . . Knockbacks 18 | . 4 . . . 14 . . Impact . | . . . . . . . . Kinetic 18 | . 4 . . . 14 . . Secondary . | . . . . . . . . Self-Inflicted Damage 234 | . . . . 21 79 . 134 Shots 6 | . . . . 1 2 . 3 Rammed 4 | . . . . . 1 . 3 Targets Rammed 6 | 1 . . . . 2 . 3 Kicked 2 | 1 . . . . 1 . . Crushed . | . . . . . . . . Highest Temperature 746 | . 114 . . 18 387 . 746 Average Temperature 126 | . 34 . . 7 87 . 216 Received Heat Transfer 1593 | . 177 . . . 396 . 1020 Effects 39 | . . . . . . . 39 Shutdowns 3 | . . . . . . . 3 Energy Bleed 2 | . . . . . . . 2 Interference 1 | . . . . . . . 1 Matter Decay 4 | . . . . . . . 4 Short Circuit 2 | . . . . . . . 2 Damage (minor) 3 | . . . . . . . 3 Damage (major) 22 | . . . . . . . 22 Damage (core) 2 | . . . . . . . 2 Siege Activations . | . . . . . . . . Robots Corrupted 1 | . . . . . 1 . . Combat Hostiles 1 | . . . . . 1 . . Parts Fried 4 | . . . . . 3 . 1 Impact Corruptions . | . . . . . . . . Robots Melted . | . . . . . . . . Combat Hostiles . | . . . . . . . . Parts Melted 1 | . . . . . . . 1 Heat Transferred 1678 | . 370 . . 50 444 . 814 Parts Sabotaged . | . . . . . . . . Parts Stolen . | . . . . . . . . Parts Stripped . | . . . . . . . . Power Chain Reactions . | . . . . . . . . Alert | -11 -10 -10 -10 -9 -8 -7 -7 ------- Run | Yrd Mat Min Exi Min Mat Fac Gar Peak Influence 833 | 10 253 44 . 200 617 229 833 Initial 229 | . 6 44 . . 19 229 163 Average 259 | 3 117 44 . 78 331 229 596 Maximum Alert Level 3 | . 1 . . 1 2 1 3 Low Security (%) 50 | 100 76 100 . 69 27 . 15 Level 1 21 | . 23 . . 30 28 100 2 Level 2 17 | . . . . . 43 . 31 Level 3 10 | . . . . . . . 50 Level 4 . | . . . . . . . . Level 5 . | . . . . . . . . High Security . | . . . . . . . . Max Security . | . . . . . . . . Squads Dispatched 9 | . 2 . . . 7 . . Investigation . | . . . . . . . . Extermination . | . . . . . . . . Reinforcement 6 | . 2 . . . 4 . . Assault 3 | . . . . . 3 . . Garrison . | . . . . . . . . Intercept . | . . . . . . . . Searches Triggered . | . . . . . . . . Construction Impeded 1 | . . . . . 1 . . Haulers Reinforced . | . . . . . . . . Active Scanning Responses . | . . . . . . . . Cargo Convoy Interrupts . | . . . . . . . . Stealth | -11 -10 -10 -10 -9 -8 -7 -7 --------- Run | Yrd Mat Min Exi Min Mat Fac Gar Distress Signals 2 | . . . . . 2 . . Communications Jammed . | . . . . . . . . Distress Signals . | . . . . . . . . Times Spotted 81 | . 21 . . 1 30 . 29 Peak Tracking Total 9 | . 4 . . 1 6 . 9 Tactical Retreats 10 | . 4 . . . 3 . 3 Traps | -11 -10 -10 -10 -9 -8 -7 -7 ------- Run | Yrd Mat Min Exi Min Mat Fac Gar Traps Triggered 3 | . . . . . . 2 1 Indirectly . | . . . . . . . . Trap Hack Attempts . | . . . . . . . . Triggered . | . . . . . . . . Disarmed . | . . . . . . . . Reprogrammed . | . . . . . . . . Reused . | . . . . . . . . Traps Extracted . | . . . . . . . . Installed . | . . . . . . . . Triggered . | . . . . . . . . Machines | -11 -10 -10 -10 -9 -8 -7 -7 ---------- Run | Yrd Mat Min Exi Min Mat Fac Gar Machines Disabled 8 | . 1 . . 1 2 . 4 Max in Single Turn 1 | . 1 . . 1 1 . 1 Machines Repaired . | . . . . . . . . Machines Dismantled . | . . . . . . . . Machines Sabotaged . | . . . . . . . . Overloaded Fab Kills . | . . . . . . . . Hacking | -11 -10 -10 -10 -9 -8 -7 -7 --------- Run | Yrd Mat Min Exi Min Mat Fac Gar Machines Accessed 17 | . 8 1 1 1 4 1 1 Terminals 11 | . 6 . . 1 3 . 1 Fabricators . | . . . . . . . . Repair Stations 2 | . 1 . . . 1 . . Recycling Units 1 | . 1 . . . . . . Scanalyzers . | . . . . . . . . Garrison Access 1 | . . . . . . 1 . Total Hacks 45 | . 24 1 1 2 14 2 1 Successful 23 | . 9 1 1 2 9 1 . Failed 22 | . 15 . . . 5 1 1 Catastrophic 5 | . 3 . . . 1 . 1 Database Lockouts . | . . . . . . . . Manual 1 | . . . 1 . . . . Terminals 36 | . 21 . . 2 12 . 1 Fabricators . | . . . . . . . . Repair Stations 4 | . 2 . . . 2 . . Recycling Units 1 | . 1 . . . . . . Scanalyzers . | . . . . . . . . Garrison Access 2 | . . . . . . 2 . Terminal Hacks 18 | . 7 1 1 2 7 . . Record 5 | . 2 . . . 3 . . Robot Analysis 1 | . . . . . 1 . . Prototype ID Bank 1 | . 1 . . . . . . Open Door 1 | . . 1 . . . . . Emergency Access Points 1 | . . . . . 1 . . Locate Traps 1 | . . . . . 1 . . Dispatch Records 2 | . 1 . . 1 . . . Transport Status 1 | . . . . . 1 . . Reinforcement Status 1 | . 1 . . . . . . Assault Status 1 | . 1 . . . . . . Hauler Manifests 1 | . 1 . . . . . . Zone Layout 1 | . . . . 1 . . . Derelict Proto ID Bank 1 | . . . 1 . . . . Fabricator Hacks . | . . . . . . . . Repair Station Hacks 3 | . 1 . . . 2 . . Scan Component 2 | . 1 . . . 1 . . Repair 1 | . . . . . 1 . . Recycling Unit Hacks 1 | . 1 . . . . . . Report Inventory 1 | . 1 . . . . . . Scanalyzer . | . . . . . . . . Garrison Access Hacks 1 | . . . . . . 1 . Unlock Access 1 | . . . . . . 1 . Unauthorized Hacks . | . . . . . . . . Terminals . | . . . . . . . . Fabricators . | . . . . . . . . Repair Stations . | . . . . . . . . Recycling Units . | . . . . . . . . Scanalyzers . | . . . . . . . . Garrison Access . | . . . . . . . . Data Cores Recovered . | . . . . . . . . Used . | . . . . . . . . Hacking Detections 9 | . 5 . . . 3 . 1 Full Trace Events 1 | . 1 . . . . . . Feedback Events . | . . . . . . . . Feedback Blocked . | . . . . . . . . Robot Schematics Acquired . | . . . . . . . . Robots Built . | . . . . . . . . Authchips . | . . . . . . . . Time . | . . . . . . . . Total Robot Build Rating . | . . . . . . . . Part Schematics Acquired . | . . . . . . . . Parts Built . | . . . . . . . . Authchips . | . . . . . . . . Time . | . . . . . . . . Total Part Build Rating . | . . . . . . . . Parts Repaired 1 | . . . . . 1 . . Time 32 | . . . . . 32 . . Parts Recycled . | . . . . . . . . Recycled Matter . | . . . . . . . . Retrieved Matter . | . . . . . . . . Retrieved Components . | . . . . . . . . Parts Scanalyzed . | . . . . . . . . Part Schematics Acquired . | . . . . . . . . Parts Damaged . | . . . . . . . . Bothacking | -11 -10 -10 -10 -9 -8 -7 -7 ------------ Run | Yrd Mat Min Exi Min Mat Fac Gar Used RIF Installer . | . . . . . . . . Robots Hacked . | . . . . . . . . Non-combat . | . . . . . . . . Combat . | . . . . . . . . Robot Hacks Applied . | . . . . . . . . Relay Couplers Released . | . . . . . . . . Fabnet Peak Effective % . | . . . . . . . . Robots Rewired . | . . . . . . . . Allies Hacked . | . . . . . . . . Hacks Repelled . | . . . . . . . . Allies | -11 -10 -10 -10 -9 -8 -7 -7 -------- Run | Yrd Mat Min Exi Min Mat Fac Gar Total Allies . | . . . . . . . . Largest Group . | . . . . . . . . Highest-Rated Group . | . . . . . . . . Highest-Rated Ally . | . . . . . . . . Total Orders . | . . . . . . . . Ally Attacks . | . . . . . . . . Total Damage . | . . . . . . . . Kills . | . . . . . . . . Allies Corrupted . | . . . . . . . . Allies Melted . | . . . . . . . . Intel | -11 -10 -10 -10 -9 -8 -7 -7 ------- Run | Yrd Mat Min Exi Min Mat Fac Gar Robot Analysis Total 1 | . . . . . 1 . . Derelict Logs Recovered 1 | . . 1 . . . . . Drone Launches . | . . . . . . . . Drone Recoveries . | . . . . . . . . Exploration | -11 -10 -10 -10 -9 -8 -7 -7 ------------- Run | Yrd Mat Min Exi Min Mat Fac Gar Turns Passed 5577 | 121 1086 286 811 943 1252 106 972 Spaces Moved 2854 | 78 581 148 426 469 625 62 465 Core 25 | 6 . . . . . . 19 Treads 724 | . . . . . 217 62 445 Legs 2096 | 64 581 148 426 469 408 . . Wheels 9 | 8 . . . . . . 1 Hover . | . . . . . . . . Flight . | . . . . . . . . Fastest Speed 50 | 50 120 190 190 190 120 170 100 Average Speed 165 | 112 149 190 190 190 143 170 166 Slowest Speed 250 | 120 190 190 190 190 250 170 170 Overloaded Moves . | . . . . . . . . Propulsion Burnouts . | . . . . . . . . Robots Hopped . | . . . . . . . . Cave-ins Triggered . | . . . . . . . . Exploration Rate (%) 49 | 5 74 46 88 79 58 3 43 Regions Visited 7 Branch Regions 3 Pre-discovered Areas 1 | . . 1 . . . . . Known Exits Taken 5 | . 1 1 1 1 . 1 . Unknown Exits Taken 2 | 1 . . . . 1 . . Scrap Searched 2 | . . . . 2 . . . Spaces Dug 39 | . . . . . 18 . 21 Terrain Destroyed 335 | . . . . 64 169 . 102 Melee . | . . . . . . . . Projectile 2 | . . . . . . . 2 AOE 333 | . . . . 64 169 . 100 Terrain Rammed . | . . . . . . . . Walls Destroyed . | . . . . . . . . Machines Disabled . | . . . . . . . . Actions | -11 -10 -10 -10 -9 -8 -7 -7 --------- Run | Yrd Mat Min Exi Min Mat Fac Gar Total 3413 | 98 710 155 431 514 869 62 574 Wait 128 | . 23 3 . 39 52 . 11 Move 2848 | 77 580 147 425 468 624 62 465 Hop . | . . . . . . . . Pick Up 93 | 5 18 2 2 1 56 . 9 Fast Attach 33 | 8 10 . . . 12 . 3 Attach 23 | . . . . 1 6 . 16 Detach 4 | . 1 . . . 2 . 1 Swap 46 | 2 7 . . 1 29 . 7 Drop 62 | 1 20 3 4 . 24 . 10 Fire 170 | 4 51 . . 4 62 . 49 Melee . | . . . . . . . . Ram 2 | . . . . . . . 2 Kick 2 | 1 . . . . 1 . . Crush 2 | . . . . . 1 . 1 Escape Stasis . | . . . . . . . . Rewire . | . . . . . . . . Trap . | . . . . . . . . Miscellaneous . | . . . . . . . . Route ------- -11/Scrapyard -10/Materials (discovered 3 exits: *Mat x2 / *Min) -10/Mines -10/Exiles -9/Mines -8/Materials (discovered 2 exits: *Fac / [*Sto]) -7/Factory -7/Garrison (discovered 1 exit: [*Fac]) History --------- Turn | Location | Event 40 | -11/Scrapyard | Discovered new exit (range 16) 122 | -11/Scrapyard | Entered Materials 305 | -10/Materials | Build established: Mutant 378 | -10/Materials | Discovered new exit (range 16) 792 | -10/Materials | Discovered new exit (range 12) 850 | -10/Materials | Build established: Scavenger-Mutant 982 | -10/Materials | Identified exit to Materials 1172 | -10/Materials | Discovered new exit (range 15) 1204 | -10/Materials | Identified exit to Mines 1208 | -10/Materials | Entered Mines 1240 | -10/Mines | Received a Rocket Launcher from a helpful Derelict 1280 | -10/Mines | Learned location of Zion (-7) 1453 | -10/Mines | Found the Drone Emporium 1469 | -10/Mines | Found Prototype Device 1487 | -10/Mines | Deemed a non-threat by the Exiles lab entrance 1487 | -10/Mines | Discovered new exit (range 5) 1492 | -10/Mines | Identified exit to Exiles 1494 | -10/Mines | Entered Exiles 1540 | -10/Exiles | Met 8R-AWN 1574 | -10/Exiles | Met EX-HEX 1631 | -10/Exiles | Met EX-BIN 1654 | -10/Exiles | Aligned with FarCom system 1656 | -10/Exiles | Given EX-Vault access code 1700 | -10/Exiles | Opened EX-Vault 1741 | -10/Exiles | Found Lightpack 2.0 1782 | -10/Exiles | Warned to stay clear of 0b10 Research branches 1833 | -10/Exiles | Met EX-DEC 1897 | -10/Exiles | Visited The Gauntlet 2286 | -10/Exiles | Discovered new exit (range 10) 2303 | -10/Exiles | Identified exit to Mines 2305 | -10/Exiles | Left Exiles lab with Lightpack 2.0 2305 | -10/Exiles | Entered Mines 2534 | -9/Mines | Discovered new exit (range 9) 2550 | -9/Mines | Identified exit to Materials 2825 | -9/Mines | Assisted by bots powering up and referring to "LRC-V3" 3248 | -9/Mines | Entered Materials 3248 | -8/Materials | Evolved 4 slots: Propulsion x1, Utility x3 3559 | -8/Materials | Build established: Hauler-Mutant 3759 | -8/Materials | Repaired Rocket Launcher 3792 | -8/Materials | Discovered new exit (range 16) 3995 | -8/Materials | Destroyed 7 combat bots 4135 | -8/Materials | Discovered new exit (range 8) 4448 | -8/Materials | First assault squad dispatched 4500 | -8/Materials | Entered Factory 4500 | -7/Factory | Evolved 2 slots: Propulsion x1, Weapon x1 4606 | -7/Factory | Identified exit to Garrison 4606 | -7/Factory | Entered Garrison 4736 | -7/Garrison | Triggered checkpoint 4755 | -7/Garrison | Triggered checkpoint 4784 | -7/Garrison | Triggered checkpoint 4812 | -7/Garrison | Destroyed 10 combat bots 4917 | -7/Garrison | Triggered checkpoint 4945 | -7/Garrison | Destroyed 7 combat bots 5047 | -7/Garrison | Build established: Hauler-Skirmisher 5078 | -7/Garrison | Triggered checkpoint 5279 | -7/Garrison | Discovered new exit (range 12) 5405 | -7/Garrison | Spotted B-75 Beast 5515 | -7/Garrison | Triggered checkpoint 5542 | -7/Garrison | Lost 10 parts (1p5n1u3w) 5572 | -7/Garrison | Core integrity fell below 50% 5578 | -7/Garrison | Core integrity fell below 20% 5578 | -7/Garrison | Destroyed by Y-54 Guardian with Flak Gun Last Messages --------------- 05573_ Overheating: Arm. Huge Wheel damaged (-14). 05573_ Overheating: Deuterium Engine damaged (-6). 05573_ Overheating: Flak Cannon damaged (-13). 05574_ Overheating: Core damaged (-84). 05574_ Hpw. Shotgun destroyed. 05574_ Flak Cannon destroyed. 05574_ Hpw. Shotgun destroyed. 05574_ Deuterium Engine destroyed. 05577_ Slammed into Y-54 Guardian. 05577_ Lightpack 2.0 destroyed. 05577_ Structural Scanner crushed and broken. 05577_ Lyr. Medium Armor Plating crushed and broken. 05577_ Particle Charger crushed and broken. 05577_ Hrd. Medium Armor Plating crushed and broken. 05577_ Imp. Light Armor Plating crushed and broken. 05577_ Hcp. Battery crushed and broken. 05577_ Imp. Trap Extractor crushed and broken. 05577_ Imp. Light Armor Plating crushed and broken. 05577_ Imp. Trap Extractor crushed and broken. 05577_ Arm. Huge Wheel destroyed. Map ----- +----------------------------------------------------+ | # [* ##"%## ### ## # #???# !#??????????????? | | ## = #?#=####?? ???# #???#* !#??????????????? | | #####=#?# #????? ???# #???# *! #??????????????? | | #???# ### ###### #??# #???#!! !#??????????????? | | #???# #??# #???# !#??????????????? | | #???##### ######+#### ###### ##??????????????? | | %#???????# #????# #???????????????? | | #???????# #????# #### #############???????????? | | #???????# #??### #??# ######### ##??????????? | | #???????# "##"=#^#??# #??????????? | | #???????#!!*= [+%#??# #??????????? | | ##???????# ""###"=#??# Y #??????????? | | #????????# #????" #??##Y######### ##??????????? | | #???????? #????" ###???????????#####???????????? | | ##???????# #????" #??Y????????????????????????? | | #????????# #????# #???????????????????????????? | | ??????????###????# #???????????????????????????? | | ?????????????????# ###???????????????????????????? | | ?????????????????# #?????????????????????????????? | | ????????????????## #?????????????????????????????? | | ????????????????#" #???????????????? ??????????? | | ???????????????#?# #???#####?????? ?????????? | | ???????????????#"# ;####!YY##??? ??????????? | | ???????????????#" ;;;!![!!!## " ???????????? | | ???????????????#" [!BBYY*!! ???????????????? | | ???????????????#" ####BB@Y%#????????????????????? | | ???????????????#"###??##!!g##????????????????????? | | ???????????????##??????#####?????????????????????? | | ?????????????????????????????????????????????????? | | ?????????????????????????????????????????????????? | | ?????????????????????????????????????????????????? | | ?????????????????????????????????????????????????? | | ?????????????????????????????????????????????????? | | ?????????????????????????????????????????????????? | | ?????????????????????????????????????????????????? | | ?????????????????????????????????????????????????? | | ?????????????????????????????????????????????????? | | ?????????????????????????????????????????????????? | | ?????????????????????????????????????????????????? | | ?????????????????????????????????????????????????? | | ?????????????????????????????????????????????????? | | ?????????????????????????????????????????????????? | | ?????????????????????????????????????????????????? | | | | | | | | | | | | | | | +----------------------------------------------------+ Best States ------------- Heat Dissipation 34 Energy Generation 23 Energy Capacity 340 Matter Stores 300 Matter Capacity 300 Sight Range 16 Terrain Scan Range 16 Terrain Scan Density 85 Armor Coverage 600 Utility Shielding 66 Evasion (%) 55 Targeting Accuracy 5 Recoil Reduction 4 Matter Filtering 30 Item Schematics ----------------- None Robot Schematics ------------------ None Fabricated ------------ Nothing Alien Tech Used ----------------- None Achievements -------------- Packrat Challenges ------------ None Game ------ Seed ColdThermalThermoblaster Manual? 0 Play Time 00:58:25 Cumulative 29.7 hours Start 2024.11.01 @ 18:19:00 End 2024.11.01 @ 19:37:09 Sessions 1 Manual Loads 0 Difficulty Rogue Special Mode None Game No. 39 Rogue 39 Adventurer 0 Explorer 0 Win Type - Total 0 Types 0/0/0/0/0/0/0/0/0 Lore% 14 Gallery% 36 Achievement% 31 Wizard Run 0 Options --------- Layout 0 ASCII 0 Keyboard 0 Movement Mouse Keybinds 0 Fullscreen 1 Font 36/Proggy Map View 38x25 Zoom Use 98% Tactical HUD 1 Map Filters NONE Filters NONE Steam 1 RUN: 7f84e3de-f1ce-4e99-ae01-f5150828a6ea